[Event "Early-Titled-Tuesday-Blitz-July-09-2024"]
[Site "Chess.com"]
[Date "2024.07.09"]
[Round "3"]
[White "ShahMatKanal"]
[Black "krzyzan94"]
[Result "1/2-1/2"]
[WhiteElo "2562"]
[BlackElo "2782"]
[TimeControl "180+1"]
[EndTime "8:30:32 PDT"]
[Termination "Game drawn by repetition"]

1. d4 {[%clk 0:03:00.9]} 1... Nf6 {[%clk 0:02:59.5]} 2. Nf3 {[%clk 0:03:00.3]}
2... g6 {[%clk 0:02:58.3]} 3. c4 {[%clk 0:03:00.1]} 3... d6 {[%clk 0:02:57.5]}
4. Nc3 {[%clk 0:03:00.1]} 4... Bf5 {[%clk 0:02:58]} 5. Qb3 {[%clk 0:02:52.8]}
5... Qc8 {[%clk 0:02:55.6]} 6. g3 {[%clk 0:02:46.3]} 6... Bg7 {[%clk 0:02:52.7]}
7. Bg2 {[%clk 0:02:45.8]} 7... Nc6 {[%clk 0:02:41.6]} 8. d5 {[%clk 0:02:37.4]}
8... Nb8 {[%clk 0:02:35.4]} 9. Nh4 {[%clk 0:02:21.3]} 9... Bd7 {[%clk
0:02:32.6]} 10. O-O {[%clk 0:02:17.8]} 10... O-O {[%clk 0:02:32.6]} 11. e4
{[%clk 0:02:13.7]} 11... Na6 {[%clk 0:02:22.9]} 12. f4 {[%clk 0:01:59.1]} 12...
Nc5 {[%clk 0:01:54.6]} 13. Qc2 {[%clk 0:01:58.8]} 13... a5 {[%clk 0:01:55]} 14.
Be3 {[%clk 0:01:40.2]} 14... b6 {[%clk 0:01:48.5]} 15. f5 {[%clk 0:01:11.8]}
15... Ng4 {[%clk 0:01:42.3]} 16. Bg5 {[%clk 0:01:00.6]} 16... Bd4+ {[%clk
0:00:57.7]} 17. Kh1 {[%clk 0:01:00]} 17... f6 {[%clk 0:00:50.6]} 18. Bc1 {[%clk
0:00:55.3]} 18... g5 {[%clk 0:00:30.7]} 19. Qe2 {[%clk 0:00:53.2]} 19... Ne5
{[%clk 0:00:13.8]} 20. Nf3 {[%clk 0:00:52.4]} 20... Nxf3 {[%clk 0:00:13.8]} 21.
Bxf3 {[%clk 0:00:50.8]} 21... Kh8 {[%clk 0:00:13.9]} 22. Be3 {[%clk 0:00:49.8]}
22... Be5 {[%clk 0:00:13.7]} 23. h4 {[%clk 0:00:47.5]} 23... gxh4 {[%clk
0:00:13]} 24. gxh4 {[%clk 0:00:48.4]} 24... Rg8 {[%clk 0:00:13.8]} 25. Rg1
{[%clk 0:00:49]} 25... Qf8 {[%clk 0:00:12]} 26. Rxg8+ {[%clk 0:00:48.6]} 26...
Qxg8 {[%clk 0:00:12.2]} 27. Rg1 {[%clk 0:00:49]} 27... Qf8 {[%clk 0:00:12.5]}
28. Qd2 {[%clk 0:00:36.2]} 28... Qf7 {[%clk 0:00:12.4]} 29. Bh6 {[%clk 0:00:35]}
29... Rg8 {[%clk 0:00:12.3]} 30. Rg4 {[%clk 0:00:24.8]} 30... Rxg4 {[%clk
0:00:12.2]} 31. Bxg4 {[%clk 0:00:25.7]} 31... Qg8 {[%clk 0:00:11.7]} 32. Qe2
{[%clk 0:00:21.1]} 32... Be8 {[%clk 0:00:10.4]} 33. Nb5 {[%clk 0:00:19.5]} 33...
Bxb5 {[%clk 0:00:09.8]} 34. cxb5 {[%clk 0:00:20.4]} 34... Nd3 {[%clk 0:00:07.6]}
35. b3 {[%clk 0:00:14.8]} 35... Nf4 {[%clk 0:00:05.8]} 36. Bxf4 {[%clk
0:00:13.7]} 36... Bxf4 {[%clk 0:00:06.7]} 37. Qf3 {[%clk 0:00:11.6]} 37... Be5
{[%clk 0:00:06.8]} 38. a4 {[%clk 0:00:08.8]} 38... Qg7 {[%clk 0:00:07.3]} 39.
Bh5 {[%clk 0:00:05.9]} 39... Qh6 {[%clk 0:00:07.6]} 40. Kg2 {[%clk 0:00:04.5]}
40... Qd2+ {[%clk 0:00:07.6]} 41. Qe2 {[%clk 0:00:04.7]} 41... Qc3 {[%clk
0:00:07.6]} 42. Qf3 {[%clk 0:00:04.9]} 42... Qc2+ {[%clk 0:00:08]} 43. Kh3
{[%clk 0:00:03.1]} 43... Qh2+ {[%clk 0:00:07.9]} 44. Kg4 {[%clk 0:00:03.6]}
44... Kg7 {[%clk 0:00:07.6]} 45. Be8 {[%clk 0:00:02.6]} 45... Qg1+ {[%clk
0:00:06.2]} 46. Kh5 {[%clk 0:00:02.8]} 46... Kf8 {[%clk 0:00:06]} 47. Bd7 {[%clk
0:00:02.4]} 47... Qg7 {[%clk 0:00:05.3]} 48. Be6 {[%clk 0:00:01]} 48... Bd4
{[%clk 0:00:03.8]} 49. Qg4 {[%clk 0:00:01.3]} 49... Be5 {[%clk 0:00:03.5]} 50.
Qxg7+ {[%clk 0:00:01.3]} 50... Kxg7 {[%clk 0:00:04.4]} 51. Kg4 {[%clk
0:00:01.8]} 51... Kh6 {[%clk 0:00:04]} 52. Bd7 {[%clk 0:00:02]} 52... Kg7 {[%clk
0:00:04.5]} 53. Bc6 {[%clk 0:00:02.9]} 53... Bd4 {[%clk 0:00:04.9]} 54. Bd7
{[%clk 0:00:03.3]} 54... Bc5 {[%clk 0:00:05.3]} 55. Bc6 {[%clk 0:00:03.8]} 55...
Bb4 {[%clk 0:00:06]} 56. Bd7 {[%clk 0:00:04.2]} 56... Bc3 {[%clk 0:00:06.9]} 57.
Bc6 {[%clk 0:00:04.6]} 57... Bd4 {[%clk 0:00:06.8]} 58. Bd7 {[%clk 0:00:04.9]}
58... Bc5 {[%clk 0:00:07.3]} 59. Bc6 {[%clk 0:00:05.3]} 59... Bd4 {[%clk
0:00:07.3]} 1/2-1/2

[Event "Early-Titled-Tuesday-Blitz-July-09-2024"]
[Site "Chess.com"]
[Date "2024.07.09"]
[Round "3"]
[White "klimkoj"]
[Black "Karttunen"]
[Result "1-0"]
[WhiteElo "2883"]
[BlackElo "2682"]
[TimeControl "180+1"]
[EndTime "8:30:33 PDT"]
[Termination "klimkoj won by resignation"]

1. e4 {[%clk 0:03:00.7]} 1... e5 {[%clk 0:02:59.9]} 2. Nf3 {[%clk 0:03:00.8]}
2... Nc6 {[%clk 0:03:00.1]} 3. Bb5 {[%clk 0:03:00.8]} 3... a6 {[%clk 0:03:00.3]}
4. Ba4 {[%clk 0:03:00.3]} 4... Nf6 {[%clk 0:03:00.4]} 5. d3 {[%clk 0:03:00]}
5... b5 {[%clk 0:03:00]} 6. Bb3 {[%clk 0:03:00.6]} 6... Bc5 {[%clk 0:03:00.1]}
7. O-O {[%clk 0:03:00]} 7... d6 {[%clk 0:02:59]} 8. c3 {[%clk 0:02:59.5]} 8...
Bb6 {[%clk 0:02:58.2]} 9. Bg5 {[%clk 0:02:59.4]} 9... h6 {[%clk 0:02:54.3]} 10.
Bh4 {[%clk 0:02:59.8]} 10... g5 {[%clk 0:02:54]} 11. Bg3 {[%clk 0:03:00.3]}
11... O-O {[%clk 0:02:43]} 12. Nbd2 {[%clk 0:02:56.5]} 12... Bg4 {[%clk
0:02:31.1]} 13. Re1 {[%clk 0:02:54.8]} 13... Ne7 {[%clk 0:02:25]} 14. Nf1 {[%clk
0:02:55]} 14... Ng6 {[%clk 0:02:22.8]} 15. Ne3 {[%clk 0:02:55.3]} 15... Bxe3
{[%clk 0:02:17.7]} 16. fxe3 {[%clk 0:02:50.6]} 16... Be6 {[%clk 0:02:09.1]} 17.
Rf1 {[%clk 0:02:41.8]} 17... c5 {[%clk 0:02:01.9]} 18. Bc2 {[%clk 0:02:34.8]}
18... Kg7 {[%clk 0:01:49]} 19. Qe2 {[%clk 0:02:18.7]} 19... Rb8 {[%clk
0:01:47.8]} 20. h3 {[%clk 0:02:12.1]} 20... b4 {[%clk 0:01:39.6]} 21. c4 {[%clk
0:02:11.6]} 21... Qd7 {[%clk 0:01:36.6]} 22. Nh2 {[%clk 0:02:08.4]} 22... h5
{[%clk 0:01:30.3]} 23. Rxf6 {[%clk 0:02:01.9]} 23... Kxf6 {[%clk 0:01:30.1]} 24.
Qxh5 {[%clk 0:02:02.4]} 24... Kg7 {[%clk 0:01:17.8]} 25. Qxg5 {[%clk 0:01:57.2]}
25... f6 {[%clk 0:01:01.7]} 26. Qh5 {[%clk 0:01:55.4]} 26... a5 {[%clk
0:00:54.4]} 27. Rf1 {[%clk 0:01:53.7]} 27... a4 {[%clk 0:00:50.4]} 28. Bd1
{[%clk 0:01:44]} 28... Rh8 {[%clk 0:00:43.7]} 29. Qe2 {[%clk 0:01:43.3]} 29...
b3 {[%clk 0:00:37.2]} 30. a3 {[%clk 0:01:42.3]} 30... f5 {[%clk 0:00:33.7]} 31.
exf5 {[%clk 0:01:39.9]} 31... Bxf5 {[%clk 0:00:34.1]} 32. d4 {[%clk 0:01:36.6]}
32... cxd4 {[%clk 0:00:21.5]} 33. exd4 {[%clk 0:01:36.6]} 33... Rbe8 {[%clk
0:00:21]} 34. Qe3 {[%clk 0:01:16.6]} 34... Qa7 {[%clk 0:00:20.3]} 35. c5 {[%clk
0:01:14.6]} 35... Bc2 {[%clk 0:00:19.3]} 36. Bg4 {[%clk 0:01:10.3]} 36... dxc5
{[%clk 0:00:18.9]} 37. dxc5 {[%clk 0:01:10.2]} 37... Rhf8 {[%clk 0:00:18.3]} 38.
Re1 {[%clk 0:01:05.9]} 38... Nf4 {[%clk 0:00:18.2]} 39. Nf3 {[%clk 0:00:49.3]}
39... Nd3 {[%clk 0:00:17.3]} 40. Qg5+ {[%clk 0:00:49.4]} 40... Kh8 {[%clk
0:00:17.4]} 41. Nxe5 {[%clk 0:00:43]} 41... Nxe1 {[%clk 0:00:17.3]} 42. Kh2
{[%clk 0:00:16.9]} 42... Qg7 {[%clk 0:00:16.5]} 43. Qd2 {[%clk 0:00:10.4]} 43...
Nd3 {[%clk 0:00:16]} 44. Nxd3 {[%clk 0:00:09.3]} 44... Rd8 {[%clk 0:00:16.5]}
45. Bd6 {[%clk 0:00:07.9]} 45... Rxd6 {[%clk 0:00:15.8]} 46. cxd6 {[%clk
0:00:07.9]} 46... Bxd3 {[%clk 0:00:16.3]} 47. Qxd3 {[%clk 0:00:08.1]} 47... Qe5+
{[%clk 0:00:16.8]} 48. Qg3 {[%clk 0:00:06.8]} 48... Qxg3+ {[%clk 0:00:16.1]} 49.
Kxg3 {[%clk 0:00:07.7]} 49... Rd8 {[%clk 0:00:15.8]} 50. d7 {[%clk 0:00:08.2]}
50... Kg7 {[%clk 0:00:16.6]} 51. Kf4 {[%clk 0:00:08.8]} 51... Kf6 {[%clk
0:00:17.2]} 52. h4 {[%clk 0:00:08.8]} 52... Ke7 {[%clk 0:00:17.8]} 53. h5 {[%clk
0:00:09.5]} 53... Rf8+ {[%clk 0:00:18.2]} 54. Bf5 {[%clk 0:00:09]} 54... Rg8
{[%clk 0:00:13.3]} 55. g4 {[%clk 0:00:09.2]} 55... Rb8 {[%clk 0:00:12.9]} 56. h6
{[%clk 0:00:07.6]} 56... Rb4+ {[%clk 0:00:12.2]} 57. axb4 {[%clk 0:00:07]} 57...
a3 {[%clk 0:00:12.8]} 58. bxa3 {[%clk 0:00:07.9]} 58... b2 {[%clk 0:00:13]} 59.
Bb1 {[%clk 0:00:08.4]} 1-0

[Event "Early-Titled-Tuesday-Blitz-July-09-2024"]
[Site "Chess.com"]
[Date "2024.07.09"]
[Round "3"]
[White "Sam_ChessMood"]
[Black "quvnoq_muxlis"]
[Result "1-0"]
[WhiteElo "2930"]
[BlackElo "2708"]
[TimeControl "180+1"]
[EndTime "8:30:36 PDT"]
[Termination "Sam_ChessMood won by resignation"]

1. d4 {[%clk 0:02:58.9]} 1... d6 {[%clk 0:03:00.1]} 2. e4 {[%clk 0:02:58.2]}
2... Nf6 {[%clk 0:03:00.7]} 3. Nc3 {[%clk 0:02:58.7]} 3... e5 {[%clk 0:03:01.3]}
4. Nf3 {[%clk 0:02:59.1]} 4... exd4 {[%clk 0:03:02.2]} 5. Nxd4 {[%clk
0:02:57.8]} 5... g6 {[%clk 0:03:02.4]} 6. Be3 {[%clk 0:02:52.8]} 6... Bg7 {[%clk
0:03:02.2]} 7. Qd2 {[%clk 0:02:52.8]} 7... O-O {[%clk 0:03:01.3]} 8. O-O-O
{[%clk 0:02:51]} 8... Nc6 {[%clk 0:03:01.8]} 9. f3 {[%clk 0:02:48.6]} 9... Re8
{[%clk 0:02:56.2]} 10. Kb1 {[%clk 0:02:29.6]} 10... d5 {[%clk 0:02:21.7]} 11.
Bb5 {[%clk 0:02:28]} 11... Qd7 {[%clk 0:01:57.6]} 12. exd5 {[%clk 0:00:50.9]}
12... Nxd5 {[%clk 0:01:53.8]} 13. Nxd5 {[%clk 0:00:48.6]} 13... Qxd5 {[%clk
0:01:53.3]} 14. Ba4 {[%clk 0:00:24.2]} 14... Rxe3 {[%clk 0:01:25.3]} 15. Qxe3
{[%clk 0:00:23.6]} 15... Nxd4 {[%clk 0:01:24.5]} 16. Qe8+ {[%clk 0:00:20.6]}
16... Bf8 {[%clk 0:01:24.6]} 17. Bb3 {[%clk 0:00:17.8]} 17... Bf5 {[%clk
0:00:47.8]} 18. Qxa8 {[%clk 0:00:08.6]} 18... Qc5 {[%clk 0:00:48]} 19. Rxd4
{[%clk 0:00:07.6]} 19... Qxd4 {[%clk 0:00:47.2]} 20. Qe8 {[%clk 0:00:07.1]}
20... Qf6 {[%clk 0:00:40.7]} 21. Re1 {[%clk 0:00:07]} 21... Kg7 {[%clk
0:00:38.2]} 22. Qe5 {[%clk 0:00:07]} 22... Qxe5 {[%clk 0:00:36.8]} 23. Rxe5
{[%clk 0:00:07.9]} 23... Bd7 {[%clk 0:00:37.4]} 24. Re2 {[%clk 0:00:07.9]} 24...
Bd6 {[%clk 0:00:37.1]} 25. h3 {[%clk 0:00:08.3]} 25... h5 {[%clk 0:00:37.3]} 26.
c3 {[%clk 0:00:08.2]} 26... Kf6 {[%clk 0:00:36.8]} 27. Bc2 {[%clk 0:00:08.5]}
27... Bb5 {[%clk 0:00:36.2]} 28. Re1 {[%clk 0:00:07.2]} 28... Bg3 {[%clk
0:00:33.4]} 29. Rd1 {[%clk 0:00:06.8]} 29... Bd6 {[%clk 0:00:33.1]} 30. a4
{[%clk 0:00:06.5]} 30... Bc4 {[%clk 0:00:32.6]} 31. b3 {[%clk 0:00:06.6]} 31...
Be6 {[%clk 0:00:33]} 32. Kb2 {[%clk 0:00:06.5]} 32... Kg5 {[%clk 0:00:33.2]} 33.
Be4 {[%clk 0:00:06.4]} 33... b6 {[%clk 0:00:30.7]} 34. Bd5 {[%clk 0:00:06.6]}
34... Bxd5 {[%clk 0:00:24.4]} 35. Rxd5+ {[%clk 0:00:07.5]} 35... Kf4 {[%clk
0:00:25.3]} 36. b4 {[%clk 0:00:06.7]} 36... Kg3 {[%clk 0:00:24.9]} 37. Rd2
{[%clk 0:00:06.9]} 37... Kf4 {[%clk 0:00:16.3]} 38. Re2 {[%clk 0:00:06.4]} 38...
g5 {[%clk 0:00:15.3]} 39. Kb3 {[%clk 0:00:06.4]} 39... f5 {[%clk 0:00:12.7]} 40.
Kc4 {[%clk 0:00:06.5]} 40... c6 {[%clk 0:00:13.3]} 41. b5 {[%clk 0:00:06.6]}
41... cxb5+ {[%clk 0:00:14.2]} 42. axb5 {[%clk 0:00:06.8]} 42... Bc5 {[%clk
0:00:13.9]} 43. Kd5 {[%clk 0:00:07]} 43... Kg3 {[%clk 0:00:14]} 44. Ke5 {[%clk
0:00:06.4]} 44... g4 {[%clk 0:00:07.9]} 45. fxg4 {[%clk 0:00:05.8]} 45... fxg4
{[%clk 0:00:07.6]} 46. hxg4 {[%clk 0:00:06.1]} 46... hxg4 {[%clk 0:00:08.5]} 47.
Kf5 {[%clk 0:00:06.2]} 47... Bf2 {[%clk 0:00:07.4]} 48. Ra2 {[%clk 0:00:06.3]}
48... Bc5 {[%clk 0:00:06.5]} 49. c4 {[%clk 0:00:06.5]} 49... Bg1 {[%clk
0:00:03.7]} 50. Rxa7 {[%clk 0:00:06.2]} 50... Kxg2 {[%clk 0:00:04.2]} 51. Kxg4
{[%clk 0:00:06]} 51... Kf2 {[%clk 0:00:04.9]} 52. Kf4 {[%clk 0:00:05.6]} 52...
Ke2 {[%clk 0:00:05]} 53. Ke4 {[%clk 0:00:06]} 53... Kd2 {[%clk 0:00:05.7]} 54.
Kd5 {[%clk 0:00:06.3]} 54... Kc3 {[%clk 0:00:06.4]} 55. Rg7 {[%clk 0:00:04.9]}
55... Bc5 {[%clk 0:00:06]} 56. Rg3+ {[%clk 0:00:04.8]} 56... Kb4 {[%clk
0:00:06.1]} 57. Rg6 {[%clk 0:00:04.9]} 57... Bg1 {[%clk 0:00:05.8]} 58. Rxg1
{[%clk 0:00:04.4]} 1-0

[Event "Early-Titled-Tuesday-Blitz-July-09-2024"]
[Site "Chess.com"]
[Date "2024.07.09"]
[Round "3"]
[White "hakanazeri2"]
[Black "Igor_Janik"]
[Result "1-0"]
[WhiteElo "2626"]
[BlackElo "2877"]
[TimeControl "180+1"]
[EndTime "8:30:43 PDT"]
[Termination "hakanazeri2 won by resignation"]

1. e4 {[%clk 0:03:00.9]} 1... c6 {[%clk 0:02:58.4]} 2. d4 {[%clk 0:03:00.7]}
2... d5 {[%clk 0:02:58]} 3. Nc3 {[%clk 0:03:01.1]} 3... a6 {[%clk 0:02:54.6]} 4.
a4 {[%clk 0:02:50.6]} 4... dxe4 {[%clk 0:02:53.3]} 5. Nxe4 {[%clk 0:02:51.4]}
5... Bf5 {[%clk 0:02:53.9]} 6. Ng3 {[%clk 0:02:50.4]} 6... Bg6 {[%clk
0:02:54.3]} 7. Nf3 {[%clk 0:02:50.7]} 7... e6 {[%clk 0:02:53.6]} 8. h4 {[%clk
0:02:50.2]} 8... h6 {[%clk 0:02:52.8]} 9. Bd3 {[%clk 0:02:48.1]} 9... Bxd3
{[%clk 0:02:52.1]} 10. Qxd3 {[%clk 0:02:49]} 10... Nd7 {[%clk 0:02:49.8]} 11. a5
{[%clk 0:02:49.1]} 11... Ngf6 {[%clk 0:02:46.5]} 12. O-O {[%clk 0:02:48.3]}
12... Bd6 {[%clk 0:02:46.2]} 13. Ne4 {[%clk 0:02:47.6]} 13... Nxe4 {[%clk
0:02:45.6]} 14. Qxe4 {[%clk 0:02:48.5]} 14... Nf6 {[%clk 0:02:46.3]} 15. Qe2
{[%clk 0:02:48.1]} 15... Qc7 {[%clk 0:02:46.4]} 16. c3 {[%clk 0:02:47.9]} 16...
Rd8 {[%clk 0:02:37.8]} 17. g3 {[%clk 0:02:46.5]} 17... c5 {[%clk 0:02:37.7]} 18.
Kg2 {[%clk 0:02:44.2]} 18... Qc6 {[%clk 0:02:30.5]} 19. dxc5 {[%clk 0:02:41.2]}
19... Bxc5 {[%clk 0:02:29]} 20. Qc4 {[%clk 0:02:41]} 20... O-O {[%clk
0:02:21.8]} 21. b4 {[%clk 0:02:35.1]} 21... Ba7 {[%clk 0:02:14]} 22. Qxc6 {[%clk
0:02:34.3]} 22... bxc6 {[%clk 0:02:14.9]} 23. Ne5 {[%clk 0:02:28]} 23... Rc8
{[%clk 0:02:15.1]} 24. Rd1 {[%clk 0:01:59]} 24... Nd5 {[%clk 0:01:51.9]} 25. Bd2
{[%clk 0:01:55.4]} 25... Rfd8 {[%clk 0:01:33.2]} 26. c4 {[%clk 0:01:54.6]} 26...
Bd4 {[%clk 0:01:30.1]} 27. Nxc6 {[%clk 0:01:28.3]} 27... Rxc6 {[%clk 0:01:27.9]}
28. cxd5 {[%clk 0:01:28.4]} 28... Rxd5 {[%clk 0:01:27.1]} 29. Rac1 {[%clk
0:01:25.5]} 29... Rxc1 {[%clk 0:01:07]} 30. Bxc1 {[%clk 0:01:24.7]} 30... Kf8
{[%clk 0:01:02.2]} 31. Be3 {[%clk 0:00:39]} 31... e5 {[%clk 0:00:59.5]} 32. Kf3
{[%clk 0:00:34.2]} 32... f5 {[%clk 0:00:54.7]} 33. Bxd4 {[%clk 0:00:32.1]} 33...
exd4 {[%clk 0:00:54.8]} 34. Rc1 {[%clk 0:00:31.4]} 34... d3 {[%clk 0:00:51.2]}
35. Ke3 {[%clk 0:00:29]} 35... Ke7 {[%clk 0:00:42.5]} 36. Rc5 {[%clk 0:00:17.5]}
36... Rd6 {[%clk 0:00:31.2]} 37. Kd2 {[%clk 0:00:17.7]} 37... g6 {[%clk
0:00:23.2]} 38. h5 {[%clk 0:00:15]} 38... Kf6 {[%clk 0:00:15.5]} 39. b5 {[%clk
0:00:14.9]} 39... axb5 {[%clk 0:00:14.4]} 40. Rxb5 {[%clk 0:00:14.2]} 40... Kg5
{[%clk 0:00:11.6]} 41. hxg6 {[%clk 0:00:09.9]} 41... Rxg6 {[%clk 0:00:12]} 42.
Kxd3 {[%clk 0:00:09.5]} 42... Rd6+ {[%clk 0:00:12.7]} 43. Ke3 {[%clk 0:00:09.7]}
43... Rd1 {[%clk 0:00:12]} 44. Kf3 {[%clk 0:00:08.5]} 44... Ra1 {[%clk
0:00:12.2]} 45. Rc5 {[%clk 0:00:07.8]} 45... Ra3+ {[%clk 0:00:12.4]} 46. Kg2
{[%clk 0:00:08]} 46... h5 {[%clk 0:00:12.8]} 47. Kh3 {[%clk 0:00:08.2]} 47...
Rf3 {[%clk 0:00:10.2]} 48. a6 {[%clk 0:00:04.8]} 48... Ra3 {[%clk 0:00:10.2]}
49. f4+ {[%clk 0:00:04.4]} 49... Kg6 {[%clk 0:00:09.1]} 50. Rc6+ {[%clk
0:00:05.1]} 50... Kf7 {[%clk 0:00:09.7]} 51. Kh4 {[%clk 0:00:05.8]} 51... Ke7
{[%clk 0:00:09.6]} 52. Rh6 {[%clk 0:00:04.8]} 52... Kf7 {[%clk 0:00:09.4]} 53.
Rxh5 {[%clk 0:00:03.6]} 53... Kg6 {[%clk 0:00:09.8]} 54. Rg5+ {[%clk 0:00:03.9]}
54... Kf6 {[%clk 0:00:10.3]} 55. Kh5 {[%clk 0:00:04.6]} 55... Ra1 {[%clk
0:00:09.5]} 56. Rg6+ {[%clk 0:00:05.1]} 56... Kf7 {[%clk 0:00:10.1]} 57. Kg5
{[%clk 0:00:05.6]} 57... Ra3 {[%clk 0:00:10.6]} 58. Rf6+ {[%clk 0:00:05]} 58...
Ke7 {[%clk 0:00:11.2]} 59. Kxf5 {[%clk 0:00:03.3]} 59... Rxg3 {[%clk 0:00:11.9]}
60. Rb6 {[%clk 0:00:03.2]} 60... Ra3 {[%clk 0:00:11.7]} 61. Rb7+ {[%clk
0:00:02.3]} 61... Kd6 {[%clk 0:00:12.3]} 62. a7 {[%clk 0:00:02.9]} 1-0

[Event "Early-Titled-Tuesday-Blitz-July-09-2024"]
[Site "Chess.com"]
[Date "2024.07.09"]
[Round "3"]
[White "evgchess5"]
[Black "GilbertoHernandezAmura"]
[Result "1-0"]
[WhiteElo "2858"]
[BlackElo "2510"]
[TimeControl "180+1"]
[EndTime "8:30:43 PDT"]
[Termination "evgchess5 won by resignation"]

1. e4 {[%clk 0:03:00.9]} 1... e5 {[%clk 0:02:59.9]} 2. Nf3 {[%clk 0:03:00.6]}
2... Nc6 {[%clk 0:02:59.5]} 3. Bc4 {[%clk 0:03:00.8]} 3... Bc5 {[%clk
0:02:59.7]} 4. c3 {[%clk 0:03:00.8]} 4... d6 {[%clk 0:02:56.9]} 5. O-O {[%clk
0:02:59]} 5... h6 {[%clk 0:02:53.6]} 6. d4 {[%clk 0:02:58.2]} 6... exd4 {[%clk
0:02:38.1]} 7. cxd4 {[%clk 0:02:57.4]} 7... Bb6 {[%clk 0:02:38.6]} 8. h3 {[%clk
0:02:40.6]} 8... Nf6 {[%clk 0:02:35.2]} 9. Nc3 {[%clk 0:02:40.4]} 9... O-O
{[%clk 0:02:31.5]} 10. d5 {[%clk 0:02:19.5]} 10... Ne5 {[%clk 0:02:28.2]} 11.
Nxe5 {[%clk 0:02:19.3]} 11... dxe5 {[%clk 0:02:29.1]} 12. Qf3 {[%clk 0:02:18.7]}
12... c6 {[%clk 0:02:13.3]} 13. dxc6 {[%clk 0:02:09.9]} 13... bxc6 {[%clk
0:02:13.4]} 14. Rd1 {[%clk 0:02:05.6]} 14... Qe7 {[%clk 0:02:13.7]} 15. Be3
{[%clk 0:02:05]} 15... Be6 {[%clk 0:02:12.6]} 16. Bxe6 {[%clk 0:02:00.4]} 16...
Qxe6 {[%clk 0:02:13.5]} 17. b3 {[%clk 0:01:56.8]} 17... Rfd8 {[%clk 0:02:09.8]}
18. Na4 {[%clk 0:01:56.7]} 18... Bd4 {[%clk 0:01:51.7]} 19. Rac1 {[%clk
0:01:52.9]} 19... Rac8 {[%clk 0:01:42.9]} 20. Bxd4 {[%clk 0:01:35.6]} 20... exd4
{[%clk 0:01:37.7]} 21. Nc5 {[%clk 0:01:35.8]} 21... Qe5 {[%clk 0:01:36.4]} 22.
Re1 {[%clk 0:01:32.5]} 22... Nd7 {[%clk 0:01:32.4]} 23. Nd3 {[%clk 0:01:30.8]}
23... Qa5 {[%clk 0:01:30.7]} 24. Re2 {[%clk 0:01:29.1]} 24... Ne5 {[%clk
0:01:25.2]} 25. Nxe5 {[%clk 0:01:28.9]} 25... Qxe5 {[%clk 0:01:26.1]} 26. Qd3
{[%clk 0:01:28.8]} 26... c5 {[%clk 0:01:25.3]} 27. Rec2 {[%clk 0:01:28.8]} 27...
Re8 {[%clk 0:01:20.1]} 28. f3 {[%clk 0:01:28.2]} 28... Re7 {[%clk 0:01:18.8]}
29. Rc4 {[%clk 0:01:21.9]} 29... Rec7 {[%clk 0:01:18.3]} 30. Qd2 {[%clk
0:01:15.7]} 30... g5 {[%clk 0:01:18.4]} 31. Kf2 {[%clk 0:01:13.6]} 31... Kg7
{[%clk 0:01:17.9]} 32. Qc2 {[%clk 0:01:04.3]} 32... a5 {[%clk 0:00:47.8]} 33.
Qd2 {[%clk 0:01:03.3]} 33... f5 {[%clk 0:00:44]} 34. exf5 {[%clk 0:00:57.7]}
34... Qxf5 {[%clk 0:00:44.9]} 35. Qxa5 {[%clk 0:00:57]} 35... Qf4 {[%clk
0:00:45.5]} 36. Qe1 {[%clk 0:00:48.4]} 36... Kf7 {[%clk 0:00:39.6]} 37. Qe4
{[%clk 0:00:42.1]} 37... Qd2+ {[%clk 0:00:27.1]} 38. Kg1 {[%clk 0:00:41.9]}
38... Qxa2 {[%clk 0:00:24.2]} 39. b4 {[%clk 0:00:41.3]} 39... Re8 {[%clk
0:00:19.7]} 40. Qd5+ {[%clk 0:00:36.9]} 40... Kg7 {[%clk 0:00:18.9]} 41. bxc5
{[%clk 0:00:36.9]} 41... Rce7 {[%clk 0:00:19.1]} 42. Qxd4+ {[%clk 0:00:36.7]}
42... Kg8 {[%clk 0:00:18.8]} 43. c6 {[%clk 0:00:33.4]} 43... Re2 {[%clk
0:00:18.1]} 44. Qg4 {[%clk 0:00:30.4]} 44... Re1+ {[%clk 0:00:16.4]} 45. Kh2
{[%clk 0:00:29.5]} 45... Qf2 {[%clk 0:00:16.2]} 46. Rxe1 {[%clk 0:00:24.3]}
46... Rxe1 {[%clk 0:00:15.6]} 47. Qd4 {[%clk 0:00:24.2]} 47... Qxd4 {[%clk
0:00:13.6]} 48. Rxd4 {[%clk 0:00:24]} 48... Rc1 {[%clk 0:00:14.5]} 49. Rd6
{[%clk 0:00:23.8]} 49... Kg7 {[%clk 0:00:14.2]} 50. Kg3 {[%clk 0:00:23.5]} 50...
h5 {[%clk 0:00:14.4]} 51. h4 {[%clk 0:00:23.7]} 51... gxh4+ {[%clk 0:00:13.5]}
52. Kxh4 {[%clk 0:00:23.9]} 52... Rc5 {[%clk 0:00:14.4]} 53. Kg3 {[%clk
0:00:19.1]} 53... Kf7 {[%clk 0:00:14.8]} 54. Kf4 {[%clk 0:00:18.7]} 54... Ke7
{[%clk 0:00:15.3]} 55. Rh6 {[%clk 0:00:18.6]} 55... Kf7 {[%clk 0:00:14.6]} 56.
g4 {[%clk 0:00:14.8]} 56... hxg4 {[%clk 0:00:14.6]} 57. fxg4 {[%clk 0:00:15.5]}
57... Kg7 {[%clk 0:00:15.2]} 58. Rd6 {[%clk 0:00:13.8]} 58... Kf7 {[%clk
0:00:15.8]} 59. g5 {[%clk 0:00:13.4]} 59... Ke7 {[%clk 0:00:16.2]} 60. Rh6
{[%clk 0:00:13.5]} 60... Rc4+ {[%clk 0:00:15.3]} 61. Kf5 {[%clk 0:00:13.6]}
61... Rc5+ {[%clk 0:00:15.7]} 62. Kg4 {[%clk 0:00:14]} 62... Kf7 {[%clk
0:00:14.7]} 63. Rf6+ {[%clk 0:00:12.8]} 63... Kg7 {[%clk 0:00:14.1]} 64. Kh5
{[%clk 0:00:12.9]} 64... Rc4 {[%clk 0:00:13.5]} 65. Rd6 {[%clk 0:00:12.8]} 65...
Rc5 {[%clk 0:00:14]} 66. Rd7+ {[%clk 0:00:12.7]} 66... Kf8 {[%clk 0:00:14.7]}
67. c7 {[%clk 0:00:13.2]} 1-0